[Event "GrandPrix_29.05"]
[Site "Chess.com"]
[Date "2020.05.29"]
[Round "1"]
[White "weplaychess09"]
[Black "MilosJi"]
[Result "0-1"]
[WhiteElo "2098"]
[BlackElo "2550"]
[TimeControl "600+2"]
[EndTime "9:20:28 PDT"]
[Termination "MilosJi won by resignation"]

1. d4 {[%clk 0:10:01.9]} 1... d5 {[%clk 0:09:59.9]} 2. c4 {[%clk 0:10:02.4]}
2... e6 {[%clk 0:10:00.6]} 3. Nc3 {[%clk 0:10:02.9]} 3... Nf6 {[%clk 0:10:01.2]}
4. Bg5 {[%clk 0:10:01.5]} 4... Nbd7 {[%clk 0:10:01]} 5. e3 {[%clk 0:10:02.2]}
5... c6 {[%clk 0:09:59.7]} 6. Nf3 {[%clk 0:10:01.9]} 6... Qa5 {[%clk 0:09:59.5]}
7. Nd2 {[%clk 0:10:02.6]} 7... dxc4 {[%clk 0:09:59.6]} 8. Bxf6 {[%clk
0:10:03.2]} 8... Nxf6 {[%clk 0:10:00.4]} 9. Nxc4 {[%clk 0:10:04.3]} 9... Qc7
{[%clk 0:10:01.2]} 10. Be2 {[%clk 0:10:04.4]} 10... Bd7 {[%clk 0:10:01.9]} 11.
Rc1 {[%clk 0:09:57.4]} 11... c5 {[%clk 0:10:02.4]} 12. Ne5 {[%clk 0:09:50.8]}
12... a6 {[%clk 0:09:45.8]} 13. O-O {[%clk 0:09:39.4]} 13... Bd6 {[%clk
0:09:43.3]} 14. f4 {[%clk 0:09:15.1]} 14... O-O {[%clk 0:09:29.9]} 15. Qe1
{[%clk 0:09:00.5]} 15... Rfd8 {[%clk 0:09:22.3]} 16. Qh4 {[%clk 0:08:53.7]}
16... Rac8 {[%clk 0:09:14.2]} 17. Rf3 {[%clk 0:08:22.6]} 17... cxd4 {[%clk
0:09:10.3]} 18. exd4 {[%clk 0:08:21.7]} 18... Qb6 {[%clk 0:09:10.1]} 19. Rd1
{[%clk 0:07:04.5]} 19... Be8 {[%clk 0:08:33.5]} 20. Kh1 {[%clk 0:04:56.2]} 20...
Be7 {[%clk 0:08:13.6]} 21. Nc4 {[%clk 0:04:02]} 21... Qa7 {[%clk 0:07:52.2]} 22.
f5 {[%clk 0:03:12.8]} 22... exf5 {[%clk 0:07:44.6]} 23. Rxf5 {[%clk 0:03:11.6]}
23... b5 {[%clk 0:07:23.4]} 24. Ne5 {[%clk 0:03:02.4]} 24... Bd7 {[%clk
0:07:13.8]} 25. Rf3 {[%clk 0:02:41.6]} 25... Be6 {[%clk 0:07:09.6]} 26. Rg3
{[%clk 0:02:32.9]} 26... g6 {[%clk 0:07:01.9]} 27. Bf3 {[%clk 0:02:12.8]} 27...
Nd5 {[%clk 0:05:19.7]} 28. Qh6 {[%clk 0:01:57.4]} 28... Bf8 {[%clk 0:05:16]} 29.
Qh4 {[%clk 0:01:49.6]} 29... Qe7 {[%clk 0:05:00]} 30. Qe4 {[%clk 0:01:40.5]}
30... Bg7 {[%clk 0:04:20]} 31. Re1 {[%clk 0:01:12.5]} 31... Qd6 {[%clk
0:04:09.4]} 32. Rc1 {[%clk 0:00:45.5]} 32... Nxc3 {[%clk 0:03:56.8]} 33. bxc3
{[%clk 0:00:45.4]} 33... Qxd4 {[%clk 0:03:30.3]} 34. Qxd4 {[%clk 0:00:24]} 34...
Rxd4 {[%clk 0:03:28.9]} 35. Nc6 {[%clk 0:00:25.4]} 35... Rd7 {[%clk 0:03:27.4]}
36. h4 {[%clk 0:00:19.8]} 36... Rdc7 {[%clk 0:03:23]} 37. Na5 {[%clk 0:00:16.8]}
37... Rxc3 {[%clk 0:03:20.9]} 38. Rxc3 {[%clk 0:00:17.8]} 38... Rxc3 {[%clk
0:03:21.7]} 39. h5 {[%clk 0:00:19.2]} 39... Be5 {[%clk 0:03:15.9]} 40. Rg5
{[%clk 0:00:18.6]} 40... Rc1+ {[%clk 0:03:16.6]} 0-1

[Event "GrandPrix_29.05"]
[Site "Chess.com"]
[Date "2020.05.29"]
[Round "1"]
[White "Hrant_ChessMood"]
[Black "rfhfb"]
[Result "1-0"]
[WhiteElo "2684"]
[BlackElo "2184"]
[TimeControl "600+2"]
[EndTime "9:20:51 PDT"]
[Termination "Hrant_ChessMood won on time"]

1. e4 {[%clk 0:10:01.8]} 1... e5 {[%clk 0:10:00.2]} 2. Nf3 {[%clk 0:09:58.7]}
2... Nc6 {[%clk 0:10:01.3]} 3. Bc4 {[%clk 0:09:55.3]} 3... Bc5 {[%clk
0:10:00.4]} 4. c3 {[%clk 0:09:56.3]} 4... Nf6 {[%clk 0:10:01.4]} 5. d4 {[%clk
0:09:57.5]} 5... exd4 {[%clk 0:10:02.2]} 6. e5 {[%clk 0:09:59.4]} 6... d5 {[%clk
0:09:59.7]} 7. Bb5 {[%clk 0:09:59.8]} 7... Ne4 {[%clk 0:09:58.2]} 8. cxd4 {[%clk
0:10:00]} 8... Bb6 {[%clk 0:09:59.5]} 9. Be3 {[%clk 0:10:00.3]} 9... O-O {[%clk
0:10:00.1]} 10. Nc3 {[%clk 0:09:59.4]} 10... Bg4 {[%clk 0:09:47]} 11. h3 {[%clk
0:09:57.3]} 11... Bxf3 {[%clk 0:09:18.3]} 12. gxf3 {[%clk 0:09:46.1]} 12... Nxc3
{[%clk 0:09:15]} 13. bxc3 {[%clk 0:09:45.2]} 13... Ne7 {[%clk 0:09:16.4]} 14.
Bd3 {[%clk 0:08:57.6]} 14... f5 {[%clk 0:09:07.5]} 15. O-O {[%clk 0:08:15.5]}
15... f4 {[%clk 0:06:59.8]} 16. Bc1 {[%clk 0:08:09.3]} 16... Nf5 {[%clk
0:05:05.2]} 17. Kh2 {[%clk 0:06:53.8]} 17... Qh4 {[%clk 0:04:41.5]} 18. Qc2
{[%clk 0:06:35.2]} 18... g6 {[%clk 0:04:09.9]} 19. Ba3 {[%clk 0:06:07.4]} 19...
Rf7 {[%clk 0:03:42.6]} 20. Rg1 {[%clk 0:05:53.5]} 20... Kh8 {[%clk 0:00:56.1]}
21. Rg4 {[%clk 0:05:38.3]} 21... Qh6 {[%clk 0:00:55.3]} 22. Rag1 {[%clk
0:05:25.3]} 22... Re8 {[%clk 0:00:52.5]} 23. e6 {[%clk 0:03:50.2]} 23... Rf6
{[%clk 0:00:42.5]} 24. Bxf5 {[%clk 0:03:21.3]} 24... gxf5 {[%clk 0:00:36.5]} 25.
Rg5 {[%clk 0:03:09.5]} 25... Rg6 {[%clk 0:00:11.2]} 26. Qxf5 {[%clk 0:02:45.1]}
26... Rxg5 {[%clk 0:00:11.9]} 27. Rxg5 {[%clk 0:02:40.5]} 27... Qxe6 {[%clk
0:00:11.5]} 28. Qxf4 {[%clk 0:02:21.4]} 28... c6 {[%clk 0:00:12.3]} 29. Bd6
{[%clk 0:02:15.6]} 1-0

[Event "GrandPrix_29.05"]
[Site "Chess.com"]
[Date "2020.05.29"]
[Round "1"]
[White "ebret"]
[Black "AliKa2810"]
[Result "1-0"]
[WhiteElo "2111"]
[BlackElo "2027"]
[TimeControl "600+2"]
[EndTime "9:20:51 PDT"]
[Termination "ebret won by resignation"]

1. d4 {[%clk 0:10:00.6]} 1... Nf6 {[%clk 0:09:56.9]} 2. Nf3 {[%clk 0:10:01.1]}
2... d5 {[%clk 0:09:54.7]} 3. Bf4 {[%clk 0:10:01.2]} 3... c5 {[%clk 0:09:32]} 4.
e3 {[%clk 0:10:01.5]} 4... Nc6 {[%clk 0:09:16.7]} 5. c3 {[%clk 0:09:57.1]} 5...
Qb6 {[%clk 0:09:06.1]} 6. Qc2 {[%clk 0:09:57.5]} 6... g6 {[%clk 0:09:00.3]} 7.
Nbd2 {[%clk 0:09:56.6]} 7... Bf5 {[%clk 0:08:47.5]} 8. dxc5 {[%clk 0:09:45.2]}
8... Qxc5 {[%clk 0:08:34.1]} 9. Qb3 {[%clk 0:09:46]} 9... Bc8 {[%clk 0:07:16.3]}
10. Qb5 {[%clk 0:09:39.4]} 10... Qxb5 {[%clk 0:07:01.3]} 11. Bxb5 {[%clk
0:09:41.3]} 11... a6 {[%clk 0:07:01.5]} 12. Be2 {[%clk 0:09:35.8]} 12... Bg7
{[%clk 0:07:01.7]} 13. O-O {[%clk 0:09:27.9]} 13... O-O {[%clk 0:07:02]} 14.
Rfd1 {[%clk 0:08:59.6]} 14... h6 {[%clk 0:06:48]} 15. Ne5 {[%clk 0:08:29.3]}
15... g5 {[%clk 0:06:31.3]} 16. Bg3 {[%clk 0:08:26.2]} 16... Bf5 {[%clk
0:06:28.4]} 17. h3 {[%clk 0:07:01]} 17... Rac8 {[%clk 0:06:14.1]} 18. Ndf3
{[%clk 0:06:58.9]} 18... Rfd8 {[%clk 0:06:02.5]} 19. Nxc6 {[%clk 0:06:36.4]}
19... bxc6 {[%clk 0:05:36.5]} 20. Bxa6 {[%clk 0:06:35.6]} 20... Ra8 {[%clk
0:05:38]} 21. Bb7 {[%clk 0:06:31.9]} 21... Ra7 {[%clk 0:05:22.5]} 22. Bxc6
{[%clk 0:06:32.6]} 22... e6 {[%clk 0:05:20.9]} 23. a4 {[%clk 0:06:28.5]} 23...
Ne4 {[%clk 0:04:32.5]} 24. Be5 {[%clk 0:06:18.3]} 24... Rc8 {[%clk 0:03:46]} 25.
Bb5 {[%clk 0:06:03.8]} 25... g4 {[%clk 0:03:34.5]} 26. hxg4 {[%clk 0:05:58.3]}
26... Bxg4 {[%clk 0:03:36.4]} 27. Bxg7 {[%clk 0:05:58.6]} 27... Kxg7 {[%clk
0:03:36.3]} 28. Rdc1 {[%clk 0:05:17.4]} 28... Bxf3 {[%clk 0:02:58.3]} 29. gxf3
{[%clk 0:05:19.3]} 29... Nc5 {[%clk 0:02:59.7]} 30. Ra2 {[%clk 0:05:05.3]} 30...
Nb3 {[%clk 0:02:20.1]} 31. Rd1 {[%clk 0:04:55.5]} 31... Kf6 {[%clk 0:02:21.4]}
32. Kf1 {[%clk 0:04:44.9]} 32... h5 {[%clk 0:02:21.1]} 33. Bd3 {[%clk
0:04:32.9]} 33... h4 {[%clk 0:02:08.2]} 34. Kg2 {[%clk 0:04:33.7]} 34... Ke7
{[%clk 0:01:28.3]} 35. Bc2 {[%clk 0:04:33.6]} 35... Nc5 {[%clk 0:01:16]} 36. Rd4
{[%clk 0:04:32.1]} 36... Rh8 {[%clk 0:00:58.4]} 37. Kh3 {[%clk 0:04:13.2]} 37...
f5 {[%clk 0:00:58.9]} 38. Rxh4 {[%clk 0:04:09.8]} 38... Rxh4+ {[%clk 0:01:00.8]}
39. Kxh4 {[%clk 0:04:11.6]} 39... Kf6 {[%clk 0:01:00.6]} 40. f4 {[%clk
0:04:04.5]} 40... Rg7 {[%clk 0:00:47.6]} 41. b4 {[%clk 0:03:51.1]} 41... Ne4
{[%clk 0:00:37.8]} 42. Bxe4 {[%clk 0:03:47]} 42... fxe4 {[%clk 0:00:39.7]} 43.
a5 {[%clk 0:03:36.6]} 43... Kf5 {[%clk 0:00:41.1]} 44. a6 {[%clk 0:03:08.2]}
44... Rh7+ {[%clk 0:00:41.6]} 45. Kg3 {[%clk 0:03:07.7]} 45... Rg7+ {[%clk
0:00:43.5]} 46. Kh3 {[%clk 0:03:06.2]} 46... Rh7+ {[%clk 0:00:43.6]} 47. Kg2
{[%clk 0:03:06.3]} 47... Rg7+ {[%clk 0:00:44.8]} 48. Kf1 {[%clk 0:03:07.1]}
48... Kg4 {[%clk 0:00:41.5]} 49. Ke2 {[%clk 0:03:07.5]} 1-0

[Event "GrandPrix_29.05"]
[Site "Chess.com"]
[Date "2020.05.29"]
[Round "1"]
[White "Sakkcapak"]
[Black "iceboy88"]
[Result "0-1"]
[WhiteElo "2137"]
[BlackElo "2566"]
[TimeControl "600+2"]
[EndTime "9:20:54 PDT"]
[Termination "iceboy88 won by resignation"]

1. c4 {[%clk 0:10:01.9]} 1... b6 {[%clk 0:09:48.4]} 2. e4 {[%clk 0:10:01]} 2...
e5 {[%clk 0:09:47.3]} 3. Nc3 {[%clk 0:09:59.1]} 3... Nc6 {[%clk 0:09:45.4]} 4.
Nf3 {[%clk 0:09:58.5]} 4... Bc5 {[%clk 0:09:43]} 5. Be2 {[%clk 0:09:56.9]} 5...
d6 {[%clk 0:09:39.1]} 6. O-O {[%clk 0:09:55.5]} 6... Nge7 {[%clk 0:09:18.9]} 7.
d3 {[%clk 0:09:45.2]} 7... O-O {[%clk 0:09:06.7]} 8. a3 {[%clk 0:09:30.8]} 8...
a5 {[%clk 0:09:06.8]} 9. Nd5 {[%clk 0:08:57.2]} 9... Nd4 {[%clk 0:07:33.2]} 10.
Nxd4 {[%clk 0:06:39.1]} 10... Bxd4 {[%clk 0:07:31.8]} 11. Bg4 {[%clk 0:06:27.2]}
11... Nxd5 {[%clk 0:05:31.2]} 12. Bxc8 {[%clk 0:05:10.2]} 12... Qxc8 {[%clk
0:05:03.4]} 13. exd5 {[%clk 0:05:00.5]} 13... c6 {[%clk 0:04:50.8]} 14. Qf3
{[%clk 0:04:11]} 14... cxd5 {[%clk 0:04:49.9]} 15. Qxd5 {[%clk 0:04:11.7]} 15...
Qc5 {[%clk 0:04:50.9]} 16. Qxc5 {[%clk 0:03:36.9]} 16... bxc5 {[%clk 0:04:51.1]}
17. Rb1 {[%clk 0:03:36.1]} 17... Rfb8 {[%clk 0:04:48.4]} 18. Rd1 {[%clk
0:02:41]} 18... Rb3 {[%clk 0:04:44]} 19. Rd2 {[%clk 0:02:04.3]} 19... Rab8
{[%clk 0:04:38]} 20. Kf1 {[%clk 0:01:50.2]} 20... Rxa3 {[%clk 0:04:27.4]} 21.
Ke2 {[%clk 0:01:50.3]} 21... a4 {[%clk 0:04:04.8]} 22. Kd1 {[%clk 0:01:44.8]}
22... Ra2 {[%clk 0:03:48.2]} 23. Rc2 {[%clk 0:01:15.8]} 23... Rb3 {[%clk
0:03:34.2]} 24. f3 {[%clk 0:00:26]} 24... Rxd3+ {[%clk 0:03:30]} 25. Bd2 {[%clk
0:00:27.4]} 25... Be3 {[%clk 0:02:53.1]} 26. Ke2 {[%clk 0:00:20.1]} 26... Rxd2+
{[%clk 0:02:53.3]} 27. Rxd2 {[%clk 0:00:21.2]} 27... Bxd2 {[%clk 0:02:54.6]} 28.
Kxd2 {[%clk 0:00:23.1]} 28... a3 {[%clk 0:02:53.5]} 29. Kc3 {[%clk 0:00:19.9]}
29... Rxb2 {[%clk 0:02:52.4]} 30. Ra1 {[%clk 0:00:18.6]} 30... Rxg2 {[%clk
0:02:51.3]} 31. Rxa3 {[%clk 0:00:19.3]} 31... g5 {[%clk 0:02:47]} 32. Kd3 {[%clk
0:00:18]} 32... Rxh2 {[%clk 0:02:46.4]} 33. Ke4 {[%clk 0:00:19.5]} 33... Rh4+
{[%clk 0:02:45]} 34. Kf5 {[%clk 0:00:18.5]} 34... Kg7 {[%clk 0:02:39.3]} 35.
Kxg5 {[%clk 0:00:18.9]} 35... Rxc4 {[%clk 0:02:39.7]} 36. Rd3 {[%clk 0:00:18]}
36... Rd4 {[%clk 0:02:39.3]} 37. Ra3 {[%clk 0:00:18.5]} 37... h6+ {[%clk
0:02:40.4]} 38. Kh5 {[%clk 0:00:19.4]} 38... c4 {[%clk 0:02:40.1]} 0-1

[Event "GrandPrix_29.05"]
[Site "Chess.com"]
[Date "2020.05.29"]
[Round "1"]
[White "RovenVogel"]
[Black "Korchmar_Vasiliy"]
[Result "0-1"]
[WhiteElo "1974"]
[BlackElo "2051"]
[TimeControl "600+2"]
[EndTime "9:21:01 PDT"]
[Termination "Korchmar_Vasiliy won by resignation"]

1. d4 {[%clk 0:09:57.3]} 1... Nf6 {[%clk 0:10:00.2]} 2. c4 {[%clk 0:09:45.3]}
2... e6 {[%clk 0:09:58.3]} 3. Nf3 {[%clk 0:09:45.4]} 3... d5 {[%clk 0:09:52.6]}
4. Nc3 {[%clk 0:09:36.7]} 4... Bb4 {[%clk 0:09:49.3]} 5. e3 {[%clk 0:08:52]}
5... O-O {[%clk 0:09:44.7]} 6. Bd2 {[%clk 0:08:52.4]} 6... b6 {[%clk 0:09:38.2]}
7. Rc1 {[%clk 0:08:46.2]} 7... Ba6 {[%clk 0:09:26.4]} 8. Qb3 {[%clk 0:07:58.5]}
8... c5 {[%clk 0:08:26.4]} 9. a3 {[%clk 0:07:48]} 9... Bxc3 {[%clk 0:08:21.4]}
10. Bxc3 {[%clk 0:07:39.8]} 10... Nc6 {[%clk 0:07:59.6]} 11. dxc5 {[%clk
0:07:20.1]} 11... bxc5 {[%clk 0:07:52.8]} 12. Bxf6 {[%clk 0:05:44.7]} 12... Qxf6
{[%clk 0:07:49.1]} 13. cxd5 {[%clk 0:05:45.1]} 13... Bxf1 {[%clk 0:07:29.7]} 14.
Rxf1 {[%clk 0:05:36.4]} 14... exd5 {[%clk 0:07:19.3]} 15. Rxc5 {[%clk
0:05:33.6]} 15... Ne5 {[%clk 0:05:35.7]} 16. Nxe5 {[%clk 0:05:05.3]} 16... Qxe5
{[%clk 0:05:37.6]} 17. f4 {[%clk 0:05:04.8]} 17... Qe7 {[%clk 0:03:34.7]} 18.
Rc2 {[%clk 0:04:17.6]} 18... d4 {[%clk 0:02:20.5]} 19. Kf2 {[%clk 0:04:10.4]}
19... Rad8 {[%clk 0:01:57.4]} 20. Re2 {[%clk 0:03:43.7]} 20... Rfe8 {[%clk
0:01:25.2]} 21. Rd1 {[%clk 0:02:25.8]} 21... dxe3+ {[%clk 0:01:00.1]} 22. Qxe3
{[%clk 0:01:15.4]} 22... Qh4+ {[%clk 0:00:42.2]} 23. Qg3 {[%clk 0:01:13.8]}
23... Rxe2+ {[%clk 0:00:42.6]} 24. Kxe2 {[%clk 0:01:14.1]} 24... Qe7+ {[%clk
0:00:43.2]} 0-1

[Event "GrandPrix_29.05"]
[Site "Chess.com"]
[Date "2020.05.29"]
[Round "1"]
[White "monalize"]
[Black "econpower"]
[Result "1-0"]
[WhiteElo "2094"]
[BlackElo "1992"]
[TimeControl "600+2"]
[EndTime "9:21:05 PDT"]
[Termination "monalize won by resignation"]

1. e4 {[%clk 0:09:57.6]} 1... d6 {[%clk 0:10:00.7]} 2. d4 {[%clk 0:09:56.7]}
2... Nf6 {[%clk 0:10:01.7]} 3. Nc3 {[%clk 0:09:56.7]} 3... e5 {[%clk 0:10:02.4]}
4. Nf3 {[%clk 0:09:48.7]} 4... Nbd7 {[%clk 0:10:03.1]} 5. g3 {[%clk 0:09:37.3]}
5... Be7 {[%clk 0:10:03.6]} 6. Bg2 {[%clk 0:09:37.9]} 6... O-O {[%clk
0:10:04.3]} 7. O-O {[%clk 0:09:38.6]} 7... c6 {[%clk 0:10:04.5]} 8. a4 {[%clk
0:09:36.5]} 8... Qc7 {[%clk 0:10:04.8]} 9. Re1 {[%clk 0:09:34.2]} 9... Re8
{[%clk 0:10:02.6]} 10. h3 {[%clk 0:09:34.6]} 10... Bf8 {[%clk 0:10:02.8]} 11.
Be3 {[%clk 0:09:05.9]} 11... b6 {[%clk 0:09:50.9]} 12. Qd2 {[%clk 0:08:02.1]}
12... Bb7 {[%clk 0:09:51]} 13. Nh4 {[%clk 0:07:00.7]} 13... a6 {[%clk
0:09:40.7]} 14. d5 {[%clk 0:05:52.1]} 14... b5 {[%clk 0:09:32.8]} 15. dxc6
{[%clk 0:05:47.5]} 15... Bxc6 {[%clk 0:09:33.3]} 16. Nd5 {[%clk 0:05:48.1]}
16... Qb7 {[%clk 0:08:50.7]} 17. a5 {[%clk 0:05:21.2]} 17... Bxd5 {[%clk
0:08:31.4]} 18. exd5 {[%clk 0:05:21.2]} 18... Rac8 {[%clk 0:08:33.3]} 19. Nf5
{[%clk 0:04:47]} 19... g6 {[%clk 0:07:04.5]} 20. Nh6+ {[%clk 0:04:40.5]} 20...
Kg7 {[%clk 0:07:05]} 21. Rad1 {[%clk 0:04:32.4]} 21... Rc4 {[%clk 0:06:59.6]}
22. Bf1 {[%clk 0:04:11.7]} 22... Rc7 {[%clk 0:06:59.6]} 23. c3 {[%clk 0:04:02]}
23... Rec8 {[%clk 0:06:58.8]} 24. Bg5 {[%clk 0:03:57.2]} 24... Ng8 {[%clk
0:06:54.7]} 25. Ng4 {[%clk 0:03:56.2]} 25... f5 {[%clk 0:05:47.3]} 26. Nh6
{[%clk 0:03:38.1]} 26... Ngf6 {[%clk 0:05:33.8]} 27. Bh4 {[%clk 0:03:21.8]}
27... Ne4 {[%clk 0:05:28.7]} 28. Rxe4 {[%clk 0:03:05.5]} 28... fxe4 {[%clk
0:05:29.1]} 29. Qg5 {[%clk 0:03:06]} 29... Re8 {[%clk 0:05:17.2]} 30. Bg2 {[%clk
0:02:53.4]} 30... Rc4 {[%clk 0:05:11.4]} 31. Ng4 {[%clk 0:02:49.9]} 31... Be7
{[%clk 0:04:55.9]} 32. Qh6+ {[%clk 0:02:49.7]} 32... Kg8 {[%clk 0:04:56.9]} 33.
Ne3 {[%clk 0:02:46.4]} 33... Rcc8 {[%clk 0:03:50.7]} 34. Bxe4 {[%clk 0:02:43.5]}
34... Nf8 {[%clk 0:03:52]} 35. Ng4 {[%clk 0:02:39.5]} 35... Bxh4 {[%clk
0:03:48.5]} 36. Qxh4 {[%clk 0:02:39.5]} 36... Re7 {[%clk 0:03:50]} 37. Qf6
{[%clk 0:02:33.2]} 37... Rg7 {[%clk 0:03:48.9]} 38. Qxd6 {[%clk 0:02:20.3]}
38... h5 {[%clk 0:03:36.7]} 39. Nf6+ {[%clk 0:02:13.2]} 39... Kh8 {[%clk
0:03:36.9]} 40. Qxe5 {[%clk 0:02:13.9]} 40... Nd7 {[%clk 0:03:13.5]} 41. Nxd7
{[%clk 0:02:11.4]} 41... Qxd7 {[%clk 0:03:15.4]} 42. h4 {[%clk 0:02:07]} 42...
Re8 {[%clk 0:03:14.4]} 43. Qd4 {[%clk 0:02:07.8]} 43... Qg4 {[%clk 0:03:15.2]}
44. Bg2 {[%clk 0:02:04.6]} 44... Qxd4 {[%clk 0:03:08.8]} 45. Rxd4 {[%clk
0:02:05.4]} 45... Rd7 {[%clk 0:03:10.7]} 46. Be4 {[%clk 0:02:03]} 46... Kg7
{[%clk 0:03:11.3]} 47. Kg2 {[%clk 0:02:04]} 47... Kf6 {[%clk 0:03:11.9]} 48. f4
{[%clk 0:02:04.9]} 48... Rd6 {[%clk 0:03:07.4]} 49. Kf3 {[%clk 0:02:05.7]} 49...
Rc8 {[%clk 0:03:08.1]} 50. Ke3 {[%clk 0:02:05.2]} 50... Ke7 {[%clk 0:03:03.9]}
51. Kd3 {[%clk 0:02:05.1]} 51... Rf6 {[%clk 0:03:04.7]} 52. Bg2 {[%clk
0:02:02.1]} 52... Kd6 {[%clk 0:03:06.6]} 53. Bh3 {[%clk 0:02:02.4]} 53... Rc7
{[%clk 0:03:07.4]} 54. Be6 {[%clk 0:02:02.6]} 54... Rf8 {[%clk 0:03:08.3]} 55.
Re4 {[%clk 0:02:02.7]} 55... Re7 {[%clk 0:03:08.7]} 56. Re5 {[%clk 0:02:02.9]}
56... Rc7 {[%clk 0:03:06.9]} 57. Rg5 {[%clk 0:02:02.6]} 57... Rf6 {[%clk
0:03:08]} 58. b3 {[%clk 0:02:02.6]} 58... Kc5 {[%clk 0:03:06.1]} 59. Re5 {[%clk
0:02:00.8]} 59... Kd6 {[%clk 0:03:07.2]} 60. Kd4 {[%clk 0:02:00.8]} 60... Rf8
{[%clk 0:03:06.6]} 61. Rg5 {[%clk 0:02:00]} 61... Rf6 {[%clk 0:03:07.8]} 62. c4
{[%clk 0:02:00.3]} 62... bxc4 {[%clk 0:03:09]} 63. bxc4 {[%clk 0:02:00.8]} 63...
Rc5 {[%clk 0:03:10.7]} 64. Re5 {[%clk 0:01:59.3]} 64... Rxa5 {[%clk 0:03:12]}
65. Bh3 {[%clk 0:01:55.5]} 65... Rc5 {[%clk 0:03:06.9]} 66. Re8 {[%clk
0:01:55.8]} 66... Rc7 {[%clk 0:03:06.1]} 67. Rd8+ {[%clk 0:01:55.6]} 67... Ke7
{[%clk 0:03:07.1]} 68. Ra8 {[%clk 0:01:54]} 68... Rb6 {[%clk 0:03:07.6]} 69. c5
{[%clk 0:01:53.9]} 69... Rb4+ {[%clk 0:03:08.7]} 70. Kc3 {[%clk 0:01:54.6]}
70... Rxc5+ {[%clk 0:03:10]} 71. Kxb4 {[%clk 0:01:54.9]} 71... Rxd5 {[%clk
0:03:11.9]} 72. Rxa6 {[%clk 0:01:54.7]} 1-0

[Event "GrandPrix_29.05"]
[Site "Chess.com"]
[Date "2020.05.29"]
[Round "1"]
[White "IriBu"]
[Black "VitaliyBernadskiy"]
[Result "0-1"]
[WhiteElo "1771"]
[BlackElo "2389"]
[TimeControl "600+2"]
[EndTime "9:21:08 PDT"]
[Termination "VitaliyBernadskiy won by resignation"]

1. e4 {[%clk 0:09:59.6]} 1... c5 {[%clk 0:09:58.2]} 2. Nf3 {[%clk 0:09:55.7]}
2... d6 {[%clk 0:09:59.2]} 3. d4 {[%clk 0:09:55.4]} 3... cxd4 {[%clk 0:10:01.1]}
4. Nxd4 {[%clk 0:09:56.9]} 4... Nf6 {[%clk 0:10:02.3]} 5. Nc3 {[%clk 0:09:57.5]}
5... a6 {[%clk 0:10:03.6]} 6. h3 {[%clk 0:09:57.1]} 6... e5 {[%clk 0:09:55.7]}
7. Nb3 {[%clk 0:09:55.9]} 7... b5 {[%clk 0:09:04.1]} 8. Bg5 {[%clk 0:09:33]}
8... Be7 {[%clk 0:08:58.5]} 9. Bxf6 {[%clk 0:08:47.6]} 9... Bxf6 {[%clk
0:08:59.2]} 10. g3 {[%clk 0:08:44.3]} 10... Be6 {[%clk 0:08:20.3]} 11. Bg2
{[%clk 0:08:43.3]} 11... O-O {[%clk 0:08:20.9]} 12. O-O {[%clk 0:08:38.6]} 12...
Nc6 {[%clk 0:08:15.2]} 13. Nd5 {[%clk 0:08:36.5]} 13... Bg5 {[%clk 0:08:13.2]}
14. c3 {[%clk 0:08:11.9]} 14... Ne7 {[%clk 0:08:06.2]} 15. f4 {[%clk 0:07:18.9]}
15... Bxd5 {[%clk 0:07:52.9]} 16. exd5 {[%clk 0:07:11.5]} 16... exf4 {[%clk
0:07:42.9]} 17. gxf4 {[%clk 0:07:10.9]} 17... Bf6 {[%clk 0:07:44]} 18. Qd3
{[%clk 0:06:45.1]} 18... Qb6+ {[%clk 0:07:19.1]} 19. Kh1 {[%clk 0:06:29.2]}
19... Ng6 {[%clk 0:07:11.8]} 20. Nd2 {[%clk 0:06:14.6]} 20... Rfe8 {[%clk
0:06:35.6]} 21. Ne4 {[%clk 0:06:11.8]} 21... Bh4 {[%clk 0:06:36.1]} 22. f5
{[%clk 0:05:25.8]} 22... Ne5 {[%clk 0:06:36.1]} 23. Qd2 {[%clk 0:05:21]} 23...
Qd8 {[%clk 0:05:24.7]} 24. f6 {[%clk 0:05:05.6]} 24... Bxf6 {[%clk 0:04:39.6]}
25. Rxf6 {[%clk 0:03:41.1]} 25... gxf6 {[%clk 0:04:41.5]} 26. Qh6 {[%clk
0:03:34.7]} 26... Ng6 {[%clk 0:04:42.1]} 27. Ng3 {[%clk 0:02:38.9]} 27... Re5
{[%clk 0:04:42.3]} 28. Rf1 {[%clk 0:02:29.8]} 28... Qf8 {[%clk 0:04:38.6]} 29.
Qxf8+ {[%clk 0:01:33.1]} 29... Kxf8 {[%clk 0:04:22.2]} 30. Rxf6 {[%clk
0:01:31.6]} 30... Ke7 {[%clk 0:04:23.2]} 31. Rf2 {[%clk 0:01:21.6]} 31... Nh4
{[%clk 0:04:23]} 32. Kh2 {[%clk 0:00:17]} 32... Nxg2 {[%clk 0:04:05.3]} 33. Rxg2
{[%clk 0:00:18]} 33... Rxd5 {[%clk 0:04:04.6]} 34. Rf2 {[%clk 0:00:18.1]} 34...
Ke6 {[%clk 0:03:47.3]} 35. h4 {[%clk 0:00:14.7]} 35... Rg8 {[%clk 0:03:45.9]}
36. Ne4 {[%clk 0:00:10]} 36... Rh5 {[%clk 0:03:34.8]} 37. Kh3 {[%clk 0:00:05.3]}
37... Rh6 {[%clk 0:03:26.5]} 38. Ng3 {[%clk 0:00:05]} 38... Rf6 {[%clk 0:03:25]}
39. Re2+ {[%clk 0:00:06]} 39... Kd7 {[%clk 0:03:26.1]} 40. Re3 {[%clk
0:00:07.1]} 40... d5 {[%clk 0:03:20.4]} 41. Rd3 {[%clk 0:00:07.6]} 41... Kc6
{[%clk 0:03:20.7]} 42. a3 {[%clk 0:00:06.9]} 42... Rf2 {[%clk 0:03:18.4]} 43. b4
{[%clk 0:00:04.7]} 43... f5 {[%clk 0:03:18.7]} 44. Nh5 {[%clk 0:00:03.5]} 44...
Rg6 {[%clk 0:03:19.4]} 45. Rd4 {[%clk 0:00:03.8]} 45... Rf3+ {[%clk 0:03:18.5]}
46. Kh2 {[%clk 0:00:05.1]} 46... Rxc3 {[%clk 0:03:17.7]} 47. Nf4 {[%clk
0:00:06.3]} 47... Rg4 {[%clk 0:03:18.4]} 0-1